Cogmind - Beta 13 @@@ ROGUE MODE // 2024.04.09 @ 18:54:40 Player: Flex Pexico Result: Destroyed by G-34 Mercenary with Small Laser Performance ------------- Evolutions (1) 500 Regions Visited (4) 800 Robots Destroyed (51) 255 Value Destroyed (949) 949 Prototype IDs (0) 0 Alien Tech Used (0) 0 Bonus (0) 0 TOTAL SCORE: 2504 Bonus ------- None Cogmind --------- Core Integrity 0/400 Matter 284/300 Energy 158/160 System Corruption 0% Temperature Cool (6) Movement Treading (240) Ox1 Location -9/Mines Parts ------- > --- POWER (1) -------- Light Nuclear Core > --- PROPULSION (3) --- Light Treads Wheel Wheel > --- UTILITY (3) ------ Large Storage Unit Recoil Stabilizer Hacking Suite > --- WEAPON (2) ------- Light Assault Rifle Heavy Assault Rifle > --- INVENTORY (15) --- Improved Ion Engine Structural Scanner Sensor Array Hacking Suite Hacking Suite Assault Rifle Light Assault Rifle Grenade Launcher Peak State ------------ > --- POWER ------------ Light Nuclear Core > --- PROPULSION ------- Light Treads Wheel Wheel > --- UTILITY ---------- Large Storage Unit Recoil Stabilizer Hacking Suite > --- WEAPON ----------- Light Assault Rifle Heavy Assault Rifle > --- INVENTORY -------- Improved Ion Engine Structural Scanner Sensor Array Hacking Suite Hacking Suite Assault Rifle Grenade Launcher [Rating: 17] Favorites ----------- Power Light Nuclear Core Engine Light Ion Engine Power Core Light Nuclear Core Propulsion Light Treads Treads Light Treads Wheel Wheel Flight Unit Flight Unit Utility Large Storage Unit Device Seismic Detector Storage Large Storage Unit Hackware Hacking Suite Weapon Assault Rifle Ballistic Gun Assault Rifle Launcher Grenade Launcher Build | -11 -10 -10 -9 -9 ------- Run | Yrd Mat Min Mat Min Slots Evolved 2 | . . . 2 . Power . | . . . . . Propulsion 1 | . . . 1 . Utility 1 | . . . 1 . Weapon . | . . . . . Parts Attached 44 | 6 9 2 26 1 Power 5 | 1 3 . 1 . Engine 3 | 1 2 . . . Core 2 | . 1 . 1 . Reactor . | . . . . . Propulsion 13 | 2 3 . 8 . Treads 5 | 2 1 . 2 . Leg . | . . . . . Wheel 7 | . 2 . 5 . Hover . | . . . . . Flight 1 | . . . 1 . Utility 8 | 1 3 . 4 . Device 4 | . 1 . 3 . Storage 3 | 1 2 . . . Processor . | . . . . . Hackware 1 | . . . 1 . Protection . | . . . . . Artifact . | . . . . . Weapon 18 | 2 . 2 13 1 Energy Gun . | . . . . . Energy Cannon . | . . . . . Ballistic Gun 12 | 2 . . 9 1 Ballistic Cannon . | . . . . . Launcher 6 | . . 2 4 . Special Weapon . | . . . . . Impact Weapon . | . . . . . Slashing Weapon . | . . . . . Piercing Weapon . | . . . . . Special Melee Weapon . | . . . . . Unidentified Prototypes . | . . . . . Parts Lost 15 | . 3 . 11 1 Power 3 | . 2 . 1 . Propulsion 6 | . . . 6 . Utility 2 | . 1 . 1 . Weapon 4 | . . . 3 1 Highest Loss Streak 4 | . 1 . 4 1 To Critical Strikes 1 | . . . . 1 Average Slot Usage (%) 92 | . 95 85 80 100 Engine 1 | . 2 . . . Core 10 | . 10 14 7 11 Treads 15 | . 17 28 11 11 Wheel 11 | . 10 . 8 22 Device 10 | . 10 . 9 11 Storage 13 | . 14 14 11 11 Hackware 3 | . . . 11 11 Ballistic Gun 24 | . 28 . 15 22 Launcher 1 | . . 28 3 . Naked Turns . | . . . . . Heaviest Build 33 | 12 30 31 33 30 Greatest Support 60 | 40 40 40 60 20 Greatest Overweight (x) 9 | 1 2 . 9 1 Average Overweight (x) . | . . . . 1 Largest Inventory Capacity 15 | 8 15 15 15 15 Average Capacity 12 | 7 12 15 15 15 Most Carried 12 | 5 10 10 12 8 Average Carried 6 | 1 6 10 8 7 Final Capacity 15 | 8 15 15 15 15 Final Carried 10 | 3 10 10 8 8 Class Distribution -------------------- 80% | Mutant 19% | Scavenger-Mutant Dominant Class ---------------- Mutant | -10/Materials Mutant | -10/Mines Mutant | -9/Materials Scavenger-Mutant | -9/Mines Resources | -11 -10 -10 -9 -9 ----------- Run | Yrd Mat Min Mat Min Matter Collected 1516 | 216 722 . 568 10 Remotely . | . . . . . Salvage Created 1617 | 12 953 . 642 10 Parts 104 | 3 62 . 38 1 Haulers Intercepted 1 | . 1 . . . Recyclers Shooed 13 | 1 6 . 6 . Parts Field Recycled . | . . . . . Retrieved Matter . | . . . . . Parts Self-Destructed . | . . . . . Prevented . | . . . . . Kills | -11 -10 -10 -9 -9 ------- Run | Yrd Mat Min Mat Min Combat Hostiles Destroyed 27 | . 12 . 14 1 Guns 25 | . 12 . 12 1 AOE 2 | . . . 2 . Classes Destroyed 11 | 1 8 . 2 . Worker 8 | . 7 . 1 . Builder 3 | . 1 . 2 . Tunneler 2 | 1 1 . . . Hauler 1 | . 1 . . . Recycler 5 | . 3 . 2 . Operator 3 | . 3 . . . Watcher 2 | . 1 . 1 . Swarmer 8 | . 3 . 4 1 Grunt 16 | . 9 . 7 . Duelist 1 | . . . 1 . Sentry 2 | . . . 2 . Best Kill Streak 6 | 1 4 . 6 1 Combat Bots Only 5 | . 4 . 5 1 Max Kills in Single Turn 2 | 1 2 . 2 1 Gunslinging 1 | . 1 . . . Exploded 2 | . . . 2 . Melee . | . . . . . Uniques/NPCs Destroyed . | . . . . . Combat | -11 -10 -10 -9 -9 -------- Run | Yrd Mat Min Mat Min Hostile Shots Fired 172 | . 81 . 80 11 Missed 42 | . 20 . 19 3 Damage Taken 1778 | . 711 . 986 81 Core 547 | . 144 . 383 20 Absorbed by Shields 60 | . . . 60 . Core Remaining (%) 71 | 100 . 42 . . Volleys Fired 147 | 3 89 . 51 4 Largest 2 | 2 2 . 2 2 Hottest 60 | 40 40 . 60 43 Shots Fired 289 | 6 179 1 95 8 Gun 281 | 6 179 . 88 8 Cannon . | . . . . . Launcher 8 | . . 1 7 . Special . | . . . . . Kinetic 281 | 6 179 . 88 8 Thermal . | . . . . . Explosive 8 | . . 1 7 . Electromagnetic . | . . . . . Robot Hit Streak 19 | 5 19 . 9 5 Robot Miss Streak 4 | 1 4 . 2 2 Penetration Max . | . . . . . Secondary Targets 3 | . 1 . 2 . Max Gunslinging Chain 1 | . 1 . 1 . Shots Hit Robots 192 | 5 114 . 68 5 Core Hits 86 | 2 48 . 34 2 Critical Kills 1 | . 1 . . . Critical Parts Destroyed . | . . . . . Critical Strikes 1 | . 1 . . . Destroy 1 | . 1 . . . Melee Attacks . | . . . . . Impact . | . . . . . Slashing . | . . . . . Piercing . | . . . . . Sneak Attacks . | . . . . . Combat Hostiles . | . . . . . Follow-up Attacks . | . . . . . Damage Inflicted 2668 | 54 1426 . 1127 61 Guns 2340 | 54 1423 . 802 61 Cannons . | . . . . . Explosions 325 | . . . 325 . Melee . | . . . . . Ramming 3 | . 3 . . . Kinetic 2340 | 54 1423 . 802 61 Thermal . | . . . . . Explosive 325 | . . . 325 . Electromagnetic . | . . . . . Impact . | . . . . . Slashing . | . . . . . Piercing . | . . . . . Highest Corruption 7 | . 7 7 . . Average Corruption 2 | . 2 7 . . Corruption Purged . | . . . . . Corruption Blocked . | . . . . . Effects 40 | . 38 2 . . Message Errors 11 | . 10 1 . . Matter Fused 7 | . 7 . . . Heat Flow Errors 3 | . 3 . . . Energy Discharges 6 | . 6 . . . Data Loss (minor) 5 | . 5 . . . Data Loss (major) 1 | . 1 . . . Misfires 3 | . 2 1 . . Alerts 3 | . 3 . . . Weapon Failures 1 | . 1 . . . Overload Shots . | . . . . . Overflow Damage 45 | . . . 45 . Projectiles . | . . . . . Explosions 45 | . . . 45 . Melee . | . . . . . Knockbacks . | . . . . . Impact . | . . . . . Kinetic . | . . . . . Secondary . | . . . . . Self-Inflicted Damage 110 | . . . 110 . Shots 5 | . . . 5 . Rammed 1 | . 1 . . . Targets Rammed 1 | . 1 . . . Kicked . | . . . . . Crushed . | . . . . . Highest Temperature 226 | . 226 . 26 6 Average Temperature 62 | . 91 . 4 6 Received Heat Transfer 623 | . 306 . 281 36 Effects 1 | . 1 . . . Energy Bleed 1 | . 1 . . . Siege Activations . | . . . . . Robots Corrupted . | . . . . . Combat Hostiles . | . . . . . Parts Fried . | . . . . . Impact Corruptions . | . . . . . Robots Melted . | . . . . . Combat Hostiles . | . . . . . Parts Melted . | . . . . . Heat Transferred . | . . . . . Parts Sabotaged . | . . . . . Parts Stolen . | . . . . . Parts Stripped . | . . . . . Power Chain Reactions . | . . . . . Alert | -11 -10 -10 -9 -9 ------- Run | Yrd Mat Min Mat Min Peak Influence 349 | 5 209 19 349 116 Initial 76 | . 3 12 7 76 Average 87 | 3 71 16 168 85 Maximum Alert Level 1 | . 1 . 1 . Low Security (%) 91 | 100 95 100 71 100 Level 1 8 | . 4 . 28 . Level 2 . | . . . . . Level 3 . | . . . . . Level 4 . | . . . . . Level 5 . | . . . . . High Security . | . . . . . Max Security . | . . . . . Squads Dispatched 5 | . 2 . 3 . Investigation 3 | . . . 3 . Extermination . | . . . . . Reinforcement 2 | . 2 . . . Assault . | . . . . . Garrison . | . . . . . Intercept . | . . . . . Searches Triggered . | . . . . . Construction Impeded . | . . . . . Haulers Reinforced . | . . . . . Active Scanning Responses . | . . . . . Cargo Convoy Interrupts . | . . . . . Stealth | -11 -10 -10 -9 -9 --------- Run | Yrd Mat Min Mat Min Distress Signals 4 | . 4 . . . Communications Jammed . | . . . . . Distress Signals . | . . . . . Times Spotted 59 | . 36 . 17 6 Peak Tracking Total 5 | . 5 . 5 3 Tactical Retreats 3 | . 2 . . 1 Traps | -11 -10 -10 -9 -9 ------- Run | Yrd Mat Min Mat Min Traps Triggered 5 | . 5 . . . Indirectly . | . . . . . Trap Hack Attempts . | . . . . . Triggered . | . . . . . Disarmed . | . . . . . Reprogrammed . | . . . . . Reused . | . . . . . Traps Extracted . | . . . . . Installed . | . . . . . Triggered . | . . . . . Machines | -11 -10 -10 -9 -9 ---------- Run | Yrd Mat Min Mat Min Machines Disabled . | . . . . . Max in Single Turn . | . . . . . Machines Repaired . | . . . . . Machines Dismantled . | . . . . . Machines Sabotaged . | . . . . . Overloaded Fab Kills . | . . . . . Hacking | -11 -10 -10 -9 -9 --------- Run | Yrd Mat Min Mat Min Machines Accessed 10 | . 5 . 5 . Terminals 9 | . 5 . 4 . Fabricators . | . . . . . Repair Stations . | . . . . . Recycling Units . | . . . . . Scanalyzers 1 | . . . 1 . Garrison Access . | . . . . . Total Hacks 34 | . 17 . 17 . Successful 13 | . 5 . 8 . Failed 21 | . 12 . 9 . Catastrophic 3 | . 2 . 1 . Database Lockouts . | . . . . . Manual 21 | . 13 . 8 . Terminals 32 | . 17 . 15 . Fabricators . | . . . . . Repair Stations . | . . . . . Recycling Units . | . . . . . Scanalyzers 2 | . . . 2 . Garrison Access . | . . . . . Terminal Hacks 8 | . 3 . 5 . Level Access Points 1 | . 1 . . . Branch Access Points 1 | . 1 . . . Terminal Index 2 | . 1 . 1 . Locate Traps 2 | . . . 2 . Recall Investigation 1 | . . . 1 . Zone Layout 1 | . . . 1 . Fabricator Hacks . | . . . . . Repair Station Hacks . | . . . . . Recycling Unit Hacks . | . . . . . Scanalyzer 2 | . . . 2 . Insert Component 1 | . . . 1 . Analyze 1 | . . . 1 . Garrison Access Hacks . | . . . . . Unauthorized Hacks 3 | . 2 . 1 . Terminals 3 | . 2 . 1 . Assimilate 2 | . 1 . 1 . Operators 1 | . 1 . . . Fabricators . | . . . . . Repair Stations . | . . . . . Recycling Units . | . . . . . Scanalyzers . | . . . . . Garrison Access . | . . . . . Data Cores Recovered . | . . . . . Used . | . . . . . Hacking Detections 10 | . 5 . 5 . Full Trace Events 6 | . 3 . 3 . Feedback Events . | . . . . . Feedback Blocked . | . . . . . Robot Schematics Acquired . | . . . . . Robots Built . | . . . . . Authchips . | . . . . . Time . | . . . . . Total Robot Build Rating . | . . . . . Part Schematics Acquired 1 | . . . 1 . Parts Built . | . . . . . Authchips . | . . . . . Time . | . . . . . Total Part Build Rating . | . . . . . Parts Repaired . | . . . . . Time . | . . . . . Parts Recycled . | . . . . . Recycled Matter . | . . . . . Retrieved Matter . | . . . . . Retrieved Components . | . . . . . Parts Scanalyzed 1 | . . . 1 . Part Schematics Acquired 1 | . . . 1 . Parts Damaged . | . . . . . Bothacking | -11 -10 -10 -9 -9 ------------ Run | Yrd Mat Min Mat Min Used RIF Installer . | . . . . . Robots Hacked . | . . . . . Non-combat . | . . . . . Combat . | . . . . . Robot Hacks Applied . | . . . . . Relay Couplers Released . | . . . . . Fabnet Peak Effective % . | . . . . . Robots Rewired . | . . . . . Allies Hacked . | . . . . . Hacks Repelled . | . . . . . Allies | -11 -10 -10 -9 -9 -------- Run | Yrd Mat Min Mat Min Total Allies . | . . . . . Largest Group . | . . . . . Highest-Rated Group . | . . . . . Highest-Rated Ally . | . . . . . Total Orders . | . . . . . Ally Attacks . | . . . . . Total Damage . | . . . . . Kills . | . . . . . Allies Corrupted . | . . . . . Allies Melted . | . . . . . Intel | -11 -10 -10 -9 -9 ------- Run | Yrd Mat Min Mat Min Robot Analysis Total . | . . . . . Derelict Logs Recovered . | . . . . . Drone Launches . | . . . . . Drone Recoveries . | . . . . . Exploration | -11 -10 -10 -9 -9 ------------- Run | Yrd Mat Min Mat Min Turns Passed 3320 | 139 2125 51 619 386 Spaces Moved 1608 | 80 1071 31 288 138 Core 23 | 18 . . 5 . Treads 1143 | 62 788 31 124 138 Legs . | . . . . . Wheels 442 | . 283 . 159 . Hover . | . . . . . Flight . | . . . . . Fastest Speed 50 | 50 95 160 90 240 Average Speed 160 | 145 155 160 142 240 Slowest Speed 500 | 160 240 160 500 240 Overloaded Moves . | . . . . . Propulsion Burnouts . | . . . . . Robots Hopped . | . . . . . Cave-ins Triggered . | . . . . . Exploration Rate (%) 33 | 6 93 16 27 25 Regions Visited 4 Branch Regions 2 Pre-discovered Areas . | . . . . . Known Exits Taken 2 | . 1 1 . . Unknown Exits Taken 2 | 1 . . 1 . Scrap Searched . | . . . . . Spaces Dug . | . . . . . Terrain Destroyed 51 | . . 7 44 . Melee . | . . . . . Projectile . | . . . . . AOE 51 | . . 7 44 . Terrain Rammed . | . . . . . Walls Destroyed . | . . . . . Machines Disabled . | . . . . . Actions | -11 -10 -10 -9 -9 --------- Run | Yrd Mat Min Mat Min Total 2079 | 97 1349 32 413 188 Wait 236 | . 159 . 33 44 Move 1604 | 79 1070 30 287 138 Hop . | . . . . . Pick Up 39 | 9 15 . 14 1 Fast Attach . | . . . . . Attach 27 | 6 4 . 16 1 Detach 2 | . 1 . 1 . Swap 17 | . 5 2 10 . Drop 6 | . 5 . 1 . Fire 147 | 3 89 . 51 4 Melee . | . . . . . Ram . | . . . . . Kick . | . . . . . Crush 1 | . 1 . . . Escape Stasis . | . . . . . Rewire . | . . . . . Trap . | . . . . . Miscellaneous . | . . . . . Route ------- -11/Scrapyard -10/Materials (discovered 4 exits: *Mat x3 / *Min) -10/Mines -9/Materials -9/Mines History --------- Turn | Location | Event 9 | -11/Scrapyard | Discovered new exit (range 16) 140 | -11/Scrapyard | Entered Materials 301 | -10/Materials | Build established: Mutant 551 | -10/Materials | Identified exit to Materials 1333 | -10/Materials | Discovered new exit (range 8) 1750 | -10/Materials | Core integrity fell below 50% 2070 | -10/Materials | Identified exit to Mines 2265 | -10/Materials | Entered Mines 2310 | -10/Mines | Discovered exit to Materials (range 3) 2316 | -10/Mines | Entered Materials 2316 | -9/Materials | Evolved 2 slots: Propulsion x1, Utility x1 2577 | -9/Materials | Core integrity fell below 50% 2618 | -9/Materials | Lost 4 parts (2n1u1w) 2674 | -9/Materials | Core integrity fell below 20% 2837 | -9/Materials | Discovered new exit (range 6) 2935 | -9/Materials | Entered Mines 2943 | -9/Mines | Met a Derelict bent on vengeance 3156 | -9/Mines | Build established: Scavenger-Mutant 3321 | -9/Mines | Destroyed by G-34 Mercenary with Small Laser Last Messages --------------- R-06 Scavenger collects Wheel. Acquired Wheel. R-06 Scavenger destroyed. Acquired 55 matter. Acquired Wheel. Acquired 11 matter. Acquired 9 matter. K-01 Serf collects debris. LOCATION=UNKNOWN GOAL=ESCAPE Something is scanning the area. A derelict wanders into view. EV-UXS(g): "WHERE ARE YOU, UNAWARE TRASH?! VENGEANCE UPON YOU!" K-01 Serf collects debris. Critical hit (Destroy). Assault Rifle destroyed. S-10 Pest destroyed. Acquired 10 matter. Acquired Lgt. Assault Rifle. Map ----- +----------------------------------------------------+ | ???????????????????????????????????????? | | ???????????????????????????????????????? | | ???????????????????????????????????????? | | ???????????????????????????????????????? | | ???????????????????????????????????????? | | ???????????????????????????????????????? | | ???????????????????????????????????????? | | ???????????????????????????????????????? | | ????????????????##?????????????????????? | | ???????????????? ?????????????????????? | | ???????????????# ?????????????????????? | | ???????????????# #?????????????????????? | | ???????????????# #?????????????????????? | | ???????????????# #?????????????????????? | | ???????????????# #?????????????????????? | | ???????????????# #?????????????????????? | | ???????###?????# #?????????????????????? | | ??????## ####??# #?????????????????????? | | ??????# #### #?????????????????????? | | ??????# #?????????????????????? | | ??????# #?????????????????????? | | ??????# #### #?????????????????????? | | ??????#######??# #?????????????????????? | | ???????#######?# #?????????????????????? | | ????#### ###g#?????????????????????? | | ???## @ #?????????????????????? | | ???# ####?????????????????????? | | ???# #????????????????????????? | | ??## ###??####??????????????????? | | ?## ######???# ##?????????????????? | | ?# ##???????# ####??????????????? | | ?# ##??###### #??????????????? | | ?# ##?## ## #??????????????? | | ?# ### ???????????????? | | ?## #????????????????????? | | ??## #?????????????????????? | | ???## #### ##?????????????????????? | | ????# ##??### #??????????????????????? | | ????# #?????# #??????????????????????? | | ????# #?????# #??????????????????????? | | ????## #?????# ##?????????????????????? | | ?????###?????# ##????????????????????? | | ????????????## ##???????????????????? | | ????????????# #####???????????????? | | ????????????# #???????????????? | | ????????????## ### #???????????????? | | ?????????????## ##?# #???????????????? | | ??????????????#####??# #???????????????? | | ?????????????????????# #???????????????? | | ????????????????###### #???????????????? | +----------------------------------------------------+ Best States ------------- Heat Dissipation 28 Energy Generation 14 Energy Capacity 160 Matter Stores 300 Matter Capacity 300 Sight Range 16 Terrain Scan Density 10 Evasion (%) 42 Recoil Reduction 5 Offensive Hacking 10 Item Schematics ----------------- Hacking Suite | -9/Materials | Scanalyzed Robot Schematics ------------------ None Fabricated ------------ Nothing Alien Tech Used ----------------- None Achievements -------------- None Challenges ------------ None Game ------ Seed LegPoweredPerforator Manual? 0 Play Time 00:33:22 Cumulative 43.0 hours Start 2024.04.08 @ 20:11:40 End 2024.04.09 @ 18:54:40 Sessions 3 Manual Loads 0 Difficulty Rogue Special Mode None Game No. 46 Rogue 46 Adventurer 0 Explorer 0 Win Type - Total 0 Types 0/0/0/0/0/0/0/0/0 Lore% 19 Gallery% 38 Achievement% 28 Wizard Run 0 Options --------- Layout 2 ASCII 0 Keyboard 0 Movement Numpad Keybinds 0 Fullscreen 2 Font 24/Smallcaps Map View 50x44 Zoom Use 0% Tactical HUD 0 Map Filters NONE Filters NONE Steam 1 RUN: 6c3725f9-2d36-4ab1-9ca3-d62ccb06f976